fUSD/lending_fUSD_20240318
["ID","MTS","AMOUNT","RATE_DAILY","PERIOD"]
[319481304,1710799963031,-500.0,0.00024657,2]
[319481305,1710799963041,-1990.34,0.00024657,2]
[319481306,1710799963050,-500.0,0.00024657,2]
[319481307,1710799963060,-594.54,0.00024657,2]
[319481308,1710799963069,-570.11,0.00024657,2]
[319481309,1710799963079,-500.0,0.00024657,2]
[319481310,1710799963089,-500.0,0.00024657,2]
[319481311,1710799963099,-2010.18,0.00024657,2]
[319481312,1710799963108,-500.0,0.00024657,2]
[319481313,1710799963118,-500.0,0.00024657,2]
[319481314,1710799963128,-1089.38,0.00024657,2]
[319481315,1710799963138,-1225.65,0.00024657,2]
[319481316,1710799963147,-705.19,0.00024657,2]
[319481317,1710799963157,-2976.15,0.00024657,2]
[319481318,1710799963166,-508.99,0.00024657,2]
[319481319,1710799963176,-501.15,0.00024657,2]
[319481320,1710799963187,-1173.9,0.00024657,2]
[319481321,1710799963196,-500.0,0.00024657,2]
[319481322,1710799963206,-1787.1,0.00024657,2]
[319481323,1710799963216,-500.0,0.00024657,2]
[319481324,1710799963226,-1969.89,0.00024657,2]
[319481325,1710799963235,-551.56,0.00024657,2]
[319481326,1710799963245,-500.0,0.00024657,2]
[319481327,1710799963254,-500.0,0.00024657,2]
[319481328,1710799963264,-634.39,0.00024657,2]
[319481329,1710799963273,-515.85,0.00024657,2]
[319481330,1710799963283,-1763.14,0.00024657,2]
[319481331,1710799963293,-500.0,0.00024657,2]
[319481332,1710799963302,-1610.23,0.00024657,2]
[319481333,1710799963312,-698.44,0.00024657,2]
[319481334,1710799963321,-757.78,0.00024657,2]
[319481335,1710799963331,-500.0,0.00024657,2]
[319481336,1710799963340,-500.0,0.00024657,2]
[319481337,1710799963350,-3621.53,0.00024657,2]
[319481338,1710799963359,-1107.01,0.00024657,2]
[319481339,1710799963369,-500.0,0.00024657,2]
[319481340,1710799963379,-3272.98,0.00024657,2]
[319481341,1710799963389,-500.0,0.00024657,2]
[319481342,1710799963399,-500.0,0.00024657,2]
[319481343,1710799963409,-617.42,0.00024657,2]
[319481344,1710799963418,-500.0,0.00024657,2]
[319481345,1710799963428,-833.03,0.00024657,2]
[319481346,1710799963441,-1059.1,0.00024657,2]
[319481347,1710799963451,-500.0,0.00024657,2]
[319481348,1710799963461,-2995.13,0.00024657,2]
[319481349,1710799963471,-500.0,0.00024657,2]
[319481350,1710799963481,-500.0,0.00024657,2]
[319481351,1710799963491,-1379.17,0.00024657,2]
[319481352,1710799963501,-2205.14,0.00024657,2]
[319481353,1710799963512,-500.0,0.00024657,2]
[319481354,1710799963522,-1296.97,0.00024657,2]
[319481355,1710799963532,-684.91,0.00024657,2]
[319481356,1710799963541,-1167.23,0.00024657,2]
[319481357,1710799963551,-500.0,0.00024657,2]
[319481358,1710799963560,-500.0,0.00024657,2]
[319481359,1710799963570,-1111.67,0.00024657,2]
[319481360,1710799963580,-500.0,0.00024657,2]
[319481361,1710799963591,-500.0,0.00024657,2]
[319481362,1710799963600,-1840.74,0.00024657,2]
[319481363,1710799963610,-1159.15,0.00024657,2]
[319481364,1710799963620,-500.0,0.00024657,2]
[319481365,1710799963630,-1071.26,0.00024657,2]
[319481366,1710799963639,-501.51884981,0.00024657,2]
[319481367,1710799963649,-732.2,0.00024657,2]
[319481368,1710799963659,-500.0,0.00024657,2]
[319481369,1710799963670,-2487.12,0.00024657,2]
[319481370,1710799963681,-1409.81,0.00024657,2]
[319481371,1710799963691,-2258.29,0.00024657,2]
[319481372,1710799963700,-606.57741967,0.00024657,2]
[319481373,1710799963709,-885.61,0.00024657,2]
[319481374,1710799963719,-728.7,0.00024657,2]
[319481375,1710799963728,-981.29,0.00024657,2]
[319481376,1710799963737,-619.02,0.00024657,2]
[319481377,1710799963747,-500.0,0.00024657,2]
[319481378,1710799963756,-3027.38,0.00024657,2]
[319481379,1710799963766,-2230.77,0.00024657,2]
[319481380,1710799963775,-2148.85,0.00024657,2]
[319481381,1710799963784,-847.31,0.00024657,2]
[319481382,1710799963794,-222.19418538,0.00024657,2]
[319481383,1710799963803,-500.0,0.00024657,2]
[319481384,1710799963812,-500.0,0.00024657,2]
[319481385,1710799963821,-1040.92,0.00024657,2]
[319481386,1710799963830,-500.0,0.00024657,2]
[319481387,1710799963839,-1016.05,0.00024657,2]
[319481388,1710799964155,-625.78,0.00024657,2]
[319481389,1710799964164,-1988.29,0.00024657,2]
[319481390,1710799964174,-673.87,0.00024657,2]
[319481391,1710799964183,-500.0,0.00024657,2]
[319481392,1710799964194,-803.43,0.00024657,2]
[319481393,1710799964202,-2712.0,0.00024657,2]
[319481394,1710799964211,-618.27,0.00024657,2]
[319481395,1710799964221,-1492.36,0.00024657,2]
[319481396,1710799964230,-925.33,0.00024657,2]
[319481397,1710799964239,-1934.24,0.00024657,2]
[319481398,1710799964248,-500.0,0.00024657,2]
[319481399,1710799964257,-1347.96,0.00024657,2]
[319481400,1710799964266,-500.0,0.00024657,2]
[319481401,1710799964275,-500.0,0.00024657,2]
[319481402,1710799964285,-618.35,0.00024657,2]
[319481403,1710799964294,-3249.34,0.00024657,2]
[319481404,1710799964303,-736.87,0.00024657,2]
[319481405,1710799964312,-500.0,0.00024657,2]
[319481406,1710799964321,-1048.99,0.00024657,2]
[319481407,1710799964330,-555.58,0.00024657,2]
[319481408,1710799964339,-500.0,0.00024657,2]
[319481409,1710799964349,-695.99,0.00024657,2]
[319481410,1710799964358,-500.0,0.00024657,2]
[319481411,1710799964368,-500.0,0.00024657,2]
[319481412,1710799964377,-1686.42,0.00024657,2]
[319481413,1710799964388,-500.0,0.00024657,2]
[319481414,1710799964397,-500.0,0.00024657,2]
[319481415,1710799964407,-2027.85,0.00024657,2]
[319481416,1710799964416,-3300.65,0.00024657,2]
[319481417,1710799964426,-1879.8,0.00024657,2]
[319481418,1710799964435,-600.13,0.00024657,2]
[319481419,1710799964445,-689.62,0.00024657,2]
[319481420,1710799964455,-3602.93,0.00024657,2]
[319481421,1710799964464,-500.0,0.00024657,2]
[319481422,1710799964473,-839.53,0.00024657,2]
[319481423,1710799964483,-500.0,0.00024657,2]
[319481424,1710799964492,-734.91,0.00024657,2]
[319481425,1710799964502,-1753.56,0.00024657,2]
[319481426,1710799964511,-839.74,0.00024657,2]
[319481427,1710799964521,-500.0,0.00024657,2]
[319481428,1710799964530,-500.0,0.00024657,2]
[319481429,1710799964540,-646.59838873,0.00024657,2]
[319481430,1710799964549,-4941.23,0.00024657,2]
[319481431,1710799964559,-924.55,0.00024657,2]
[319481432,1710799964568,-646.58,0.00024657,2]
[319481433,1710799964578,-1444.11,0.00024657,2]
[319481434,1710799964589,-1862.07,0.00024657,2]
[319481435,1710799964600,-2596.77,0.00024657,2]
[319481436,1710799964609,-1913.61,0.00024657,2]
[319481437,1710799964619,-600.66,0.00024657,2]
[319481438,1710799964629,-1169.17,0.00024657,2]
[319481439,1710799964639,-501.0,0.00024657,2]
[319481440,1710799964648,-671.74,0.00024657,2]
[319481441,1710799964657,-500.0,0.00024657,2]
[319481442,1710799964667,-660.79,0.00024657,2]
[319481443,1710799964677,-500.0,0.00024657,2]
[319481444,1710799964686,-4429.56,0.00024657,2]
[319481445,1710799964695,-645.13,0.00024657,2]
[319481446,1710799964704,-1387.34,0.00024657,2]
[319481447,1710799964714,-500.0,0.00024657,2]
[319481448,1710799964723,-500.0,0.00024657,2]
[319481449,1710799964732,-1092.65,0.00024657,2]
[319481450,1710799964741,-775.21,0.00024657,2]
[319481451,1710799964750,-1234.18,0.00024657,2]
[319481452,1710799964761,-1640.92,0.00024657,2]
[319481453,1710799964770,-660.8,0.00024657,2]
[319481454,1710799964779,-618.02,0.00024657,2]
[319481455,1710799964789,-2991.4,0.00024657,2]
[319481456,1710799964798,-500.0,0.00024657,2]
[319481457,1710799964807,-526.67,0.00024657,2]
[319481458,1710799964816,-520.66,0.00024657,2]
[319481459,1710799964825,-3432.69,0.00024657,2]
[319481460,1710799964835,-929.21,0.00024657,2]
[319481461,1710799964844,-2512.6,0.00024657,2]
[319481462,1710799964853,-500.0,0.00024657,2]
[319481463,1710799964864,-553.17,0.00024657,2]
[319481464,1710799964874,-632.91,0.00024657,2]
[319481465,1710799964883,-587.03,0.00024657,2]
[319481466,1710799964893,-500.0,0.00024657,2]
[319481467,1710799964903,-500.0,0.00024657,2]
[319481468,1710799964912,-1670.28,0.00024657,2]
[319481469,1710799964921,-1508.72,0.00024657,2]
[319481470,1710799964931,-500.0,0.00024657,2]
[319481471,1710799964941,-588.94,0.00024657,2]
[319481472,1710799964950,-2672.81,0.00024657,2]
[319481473,1710799964959,-992.88,0.00024657,2]
[319481474,1710799964969,-1421.34,0.00024657,2]
[319481475,1710799964978,-1479.34,0.00024657,2]
[319481476,1710799964987,-1591.7,0.00024657,2]
[319481477,1710799964996,-549.69,0.00024657,2]
[319481478,1710799965006,-500.0,0.00024657,2]
[319481479,1710799965015,-778.13,0.00024657,2]
[319481480,1710799965026,-1096.72,0.00024657,2]
[319481481,1710799965035,-2210.21,0.00024657,2]
[319481482,1710799965044,-1855.24,0.00024657,2]
[319481483,1710799965054,-869.7,0.00024657,2]
[319481484,1710799965063,-500.0,0.00024657,2]
[319481485,1710799965073,-1747.53,0.00024657,2]
[319481486,1710799965082,-680.92,0.00024657,2]
[319481487,1710799965092,-500.0,0.00024657,2]
[319481488,1710799965102,-1181.58,0.00024657,2]
[319481489,1710799965111,-665.42,0.00024657,2]
[319481490,1710799965120,-1501.92,0.00024657,2]
[319481491,1710799965129,-2323.42,0.00024657,2]
[319481492,1710799965139,-2355.45,0.00024657,2]
[319481493,1710799965148,-2348.13,0.00024657,2]
[319481494,1710799965157,-1841.43,0.00024657,2]
[319481495,1710799965166,-407.58366753,0.00024657,2]
[319481496,1710799965175,-633.95,0.00024657,2]
[319481497,1710799965184,-2789.32,0.00024657,2]
[319481498,1710799965195,-1047.26,0.00024657,2]
[319481499,1710799965205,-500.0,0.00024657,2]
[319481500,1710799965213,-506.7,0.00024657,2]
[319481501,1710799965223,-500.0,0.00024657,2]
[319481502,1710799965232,-2028.96,0.00024657,2]
[319481503,1710799965241,-727.29,0.00024657,2]
[319481504,1710799965250,-500.0,0.00024657,2]
[319481505,1710799965259,-1121.74,0.00024657,2]
[319481506,1710799965269,-500.0,0.00024657,2]
[319481507,1710799965278,-500.0,0.00024657,2]
[319481508,1710799965287,-1964.52,0.00024657,2]
[319481509,1710799965296,-800.57,0.00024657,2]
[319481510,1710799965305,-855.83,0.00024657,2]
[319481511,1710799965314,-515.18,0.00024657,2]
[319481512,1710799965323,-805.44,0.00024657,2]
[319481513,1710799965331,-1465.25,0.00024657,2]
[319481514,1710799965341,-1137.55,0.00024657,2]
[319481515,1710799965350,-703.59,0.00024657,2]
[319481516,1710799965360,-1372.51,0.00024657,2]
[319481517,1710799965369,-500.0,0.00024657,2]
[319481518,1710799965378,-1311.42,0.00024657,2]
[319481519,1710799965387,-693.23,0.00024657,2]
[319481520,1710799965397,-890.31,0.00024657,2]
[319481521,1710799965406,-606.63,0.00024657,2]
[319481522,1710799965416,-1355.8,0.00024657,2]
[319481523,1710799965425,-633.23,0.00024657,2]
[319481524,1710799965435,-1311.22,0.00024657,2]
[319481525,1710799965446,-931.19,0.00024657,2]
[319481526,1710799965456,-500.0,0.00024657,2]
[319481527,1710799965465,-931.2,0.00024657,2]
[319481528,1710799965475,-500.0,0.00024657,2]
[319481529,1710799965484,-560.88,0.00024657,2]
[319481530,1710799965493,-578.22,0.00024657,2]
[319481531,1710799965503,-1373.23,0.00024657,2]
[319481532,1710799965512,-1189.08,0.00024657,2]
[319481533,1710799965522,-582.88,0.00024657,2]
[319481534,1710799965531,-500.0,0.00024657,2]
[319481535,1710799965541,-807.67,0.00024657,2]
[319481536,1710799965551,-500.0,0.00024657,2]
[319481537,1710799965560,-500.0,0.00024657,2]
[319481538,1710799965570,-500.0,0.00024657,2]
[319481539,1710799965579,-500.0,0.00024657,2]
[319481540,1710799965589,-1318.07,0.00024657,2]
[319481541,1710799965599,-2537.59,0.00024657,2]
[319481542,1710799965609,-1833.13,0.00024657,2]
[319481543,1710799965618,-500.0,0.00024657,2]
[319481544,1710799965627,-584.63,0.00024657,2]
[319481545,1710799965637,-922.71,0.00024657,2]
[319481546,1710799965646,-522.08,0.00024657,2]
[319481547,1710799965655,-667.48,0.00024657,2]
[319481548,1710799965664,-1186.68,0.00024657,2]
[319481549,1710799965673,-500.0,0.00024657,2]
[319481550,1710799965683,-797.09,0.00024657,2]
[319481551,1710799965693,-1847.99,0.00024657,2]
[319481552,1710799965702,-500.0,0.00024657,2]
[319481553,1710799965711,-998.55,0.00024657,2]
[319481554,1710799965720,-500.0,0.00024657,2]
[319481555,1710799965730,-1079.26,0.00024657,2]
[319481556,1710799965738,-1856.02,0.00024657,2]
[319481557,1710799965747,-1418.3,0.00024657,2]
[319481558,1710799965756,-897.94,0.00024657,2]
[319481559,1710799965765,-1186.25,0.00024657,2]
[319481560,1710799965774,-844.5,0.00024657,2]
[319481561,1710799965783,-500.0,0.00024657,2]
[319481562,1710799965792,-1228.33,0.00024657,2]
[319481563,1710799965801,-656.86,0.00024657,2]
[319481564,1710799965810,-500.0,0.00024657,2]
[319481565,1710799965819,-1254.05,0.00024657,2]
[319481566,1710799965828,-1220.28,0.00024657,2]
[319481567,1710799965837,-524.26,0.00024657,2]
[319481568,1710799965847,-500.0,0.00024657,2]
[319481569,1710799965858,-544.86,0.00024657,2]
[319481570,1710799965867,-1112.38,0.00024657,2]
[319481571,1710799965877,-1554.62,0.00024657,2]
[319481572,1710799965886,-990.25,0.00024657,2]
[319481573,1710799965896,-1046.24,0.00024657,2]
[319481574,1710799965904,-525.88,0.00024657,2]
[319481575,1710799965914,-615.98,0.00024657,2]
[319481576,1710799965923,-1017.43,0.00024657,2]
[319481577,1710799965932,-500.0,0.00024657,2]
[319481578,1710799965942,-1155.33,0.00024657,2]
[319481579,1710799965951,-3244.32,0.00024657,2]
[319481580,1710799965961,-527.83,0.00024657,2]
[319481581,1710799965970,-500.0,0.00024657,2]
[319481582,1710799965979,-1754.86,0.00024657,2]
[319481583,1710799965988,-1859.5,0.00024657,2]
[319481584,1710799965998,-1204.75,0.00024657,2]
[319481585,1710799966007,-721.17,0.00024657,2]
[319481586,1710799966016,-1304.47,0.00024657,2]
[319481587,1710799966025,-1387.32,0.00024657,2]
[319481588,1710799966034,-1084.75,0.00024657,2]
[319481589,1710799966043,-984.35,0.00024657,2]
[319481590,1710799966052,-500.0,0.00024657,2]
[319481591,1710799966061,-500.0,0.00024657,2]
[319481592,1710799966071,-500.0,0.00024657,2]
[319481593,1710799966080,-1042.11,0.00024657,2]
[319481594,1710799966089,-550.03,0.00024657,2]
[319481595,1710799966098,-500.0,0.00024657,2]
[319481596,1710799966107,-3263.23,0.00024657,2]
[319481597,1710799966117,-1980.05,0.00024657,2]
[319481598,1710799966125,-1006.81,0.00024657,2]
[319481599,1710799966135,-1334.24,0.00024657,2]
[319481600,1710799966144,-500.0,0.00024657,2]
[319481601,1710799966153,-500.0,0.00024657,2]
[319481602,1710799966163,-879.01,0.00024657,2]
[319481603,1710799966172,-772.45,0.00024657,2]
[319481604,1710799966181,-577.06,0.00024657,2]
[319481605,1710799966190,-1289.15,0.00024657,2]
[319481606,1710799966199,-558.14697309,0.00024657,2]
[319481607,1710799966209,-500.0,0.00024657,2]
[319481608,1710799966218,-500.0,0.00024657,2]
[319481609,1710799966227,-1162.86,0.00024657,2]
[319481610,1710799966237,-539.59,0.00024657,2]
[319481611,1710799966246,-545.17517919,0.00024657,2]
[319481612,1710799966255,-1284.59,0.00024657,2]
[319481613,1710799966264,-1343.86,0.00024657,2]
[319481614,1710799966273,-2423.47,0.00024657,2]
[319481615,1710799966282,-500.0,0.00024657,2]
[319481616,1710799966290,-790.0,0.00024657,2]
[319481617,1710799966299,-1561.78,0.00024657,2]
[319481618,1710799966308,-2345.93,0.00024657,2]
[319481619,1710799966318,-1543.03,0.00024657,2]
[319481620,1710799966326,-688.89,0.00024657,2]
[319481621,1710799966335,-500.0,0.00024657,2]
[319481622,1710799966344,-779.42,0.00024657,2]
[319481623,1710799966354,-500.0,0.00024657,2]
[319481624,1710799966363,-1455.91,0.00024657,2]
[319481625,1710799966372,-964.51,0.00024657,2]
[319481626,1710799966381,-236.3323276,0.00024657,2]
[319481627,1710799966391,-1604.71,0.00024657,2]
[319481628,1710799966400,-865.84,0.00024657,2]
[319481629,1710799966410,-500.0,0.00024657,2]
[319481630,1710799966419,-1347.47,0.00024657,2]
[319481631,1710799966428,-1883.82,0.00024657,2]
[319481632,1710799966441,-284.76270726,0.00024657,2]
[319481633,1710799966451,-500.0,0.00024657,2]
[319481634,1710799966460,-615.15,0.00024657,2]
[319481635,1710799966470,-500.0,0.00024657,2]
[319481636,1710799966479,-500.0,0.00024657,2]
[319481637,1710799966488,-743.05,0.00024657,2]
[319481638,1710799966497,-1288.43,0.00024657,2]
[319481639,1710799966506,-532.05,0.00024657,2]
[319481640,1710799966515,-1050.86,0.00024657,2]
[319481641,1710799966523,-568.35,0.00024657,2]
[319481642,1710799966532,-500.0,0.00024657,2]
[319481643,1710799966542,-500.0,0.00024657,2]
[319481644,1710799966551,-500.0,0.00024657,2]
[319481645,1710799966560,-500.0,0.00024657,2]
[319481646,1710799966569,-801.95,0.00024657,2]
[319481647,1710799966578,-1387.79,0.00024657,2]
[319481648,1710799966590,-3692.13,0.00024657,2]
[319481649,1710799966599,-1021.88,0.00024657,2]
[319481650,1710799966608,-1736.34,0.00024657,2]
[319481651,1710799966617,-500.0,0.00024657,2]
[319481652,1710799966627,-722.05,0.00024657,2]
[319481653,1710799966636,-2682.4,0.00024657,2]
[319481654,1710799966646,-500.0,0.00024657,2]
[319481655,1710799966655,-917.72,0.00024657,2]
[319481656,1710799966665,-1582.16,0.00024657,2]
[319481657,1710799966674,-500.0,0.00024657,2]
[319481658,1710799966684,-500.0,0.00024657,2]
[319481659,1710799966695,-500.0,0.00024657,2]
[319481660,1710799966703,-500.0,0.00024657,2]
[319481661,1710799966712,-500.0,0.00024657,2]
[319481662,1710799966721,-500.0,0.00024657,2]
[319481663,1710799966730,-500.0,0.00024657,2]
[319481664,1710799966741,-899.67,0.00024657,2]
[319481665,1710799966750,-403.59057835,0.00024657,2]
[319481666,1710799966760,-1197.99,0.00024657,2]
[319481667,1710799966768,-2570.57,0.00024657,2]
[319481668,1710799966777,-832.49,0.00024657,2]
[319481669,1710799966787,-500.0,0.00024657,2]
[319481670,1710799966796,-500.0,0.00024657,2]
[319481671,1710799966805,-503.74920512,0.00024657,2]
[319481672,1710799966814,-2336.68,0.00024657,2]
[319481673,1710799966824,-714.57,0.00024657,2]
[319481674,1710799966833,-572.14,0.00024657,2]
[319481675,1710799966843,-500.0,0.00024657,2]
[319481676,1710799966851,-570.84,0.00024657,2]
[319481677,1710799966860,-500.0,0.00024657,2]
[319481678,1710799966873,-1267.22,0.00024657,2]
[319481679,1710799966883,-500.0,0.00024657,2]
[319481680,1710799966892,-1986.27,0.00024657,2]
[319481681,1710799966901,-713.53,0.00024657,2]
[319481682,1710799966911,-500.0,0.00024657,2]
[319481683,1710799966920,-500.0,0.00024657,2]
[319481684,1710799966930,-1031.5,0.00024657,2]
[319481685,1710799966941,-500.0,0.00024657,2]
[319481686,1710799966950,-1487.73,0.00024657,2]
[319481687,1710799966963,-500.0,0.00024657,2]
[319481688,1710799966978,-1462.06,0.00024657,2]
[319481689,1710799966992,-1113.91,0.00024657,2]
[319481690,1710799967005,-662.67,0.00024657,2]
[319481691,1710799967018,-1374.98,0.00024657,2]
[319481692,1710799967034,-500.0,0.00024657,2]
[319481693,1710799967048,-2453.88,0.00024657,2]
[319481694,1710799967059,-584.72,0.00024657,2]
[319481695,1710799967073,-2831.64,0.00024657,2]
[319481696,1710799967086,-1349.99,0.00024657,2]
[319481697,1710799967100,-1580.15,0.00024657,2]
[319481698,1710799967114,-1466.21,0.00024657,2]
[319481699,1710799967125,-500.0,0.00024657,2]
[319481700,1710799967140,-500.0,0.00024657,2]
[319481701,1710799967156,-1118.72,0.00024657,2]
[319481702,1710799967170,-500.0,0.00024657,2]
[319481703,1710799967183,-606.91,0.00024657,2]
[319481704,1710799967200,-500.0,0.00024657,2]
[319481705,1710799967216,-1958.41,0.00024657,2]
[319481706,1710799967232,-605.4,0.00024657,2]
[319481707,1710799967247,-500.0,0.00024657,2]
[319481708,1710799967258,-500.0,0.00024657,2]
[319481709,1710799967269,-500.0,0.00024657,2]
[319481710,1710799967283,-942.42,0.00024657,2]
[319481711,1710799967296,-569.15,0.00024657,2]
[319481712,1710799967311,-500.0,0.00024657,2]
[319481713,1710799967326,-1400.41,0.00024657,2]
[319481714,1710799967339,-941.12,0.00024657,2]
[319481715,1710799967350,-500.0,0.00024657,2]
[319481716,1710799967370,-500.0,0.00024657,2]
[319481717,1710799967383,-1781.44,0.00024657,2]
[319481718,1710799967398,-500.0,0.00024657,2]
[319481719,1710799967412,-713.68,0.00024657,2]
[319481720,1710799967427,-1912.95,0.00024657,2]
[319481721,1710799967445,-1203.57,0.00024657,2]
[319481722,1710799967459,-905.72,0.00024657,2]
[319481723,1710799967474,-500.0,0.00024657,2]
[319481724,1710799967488,-500.0,0.00024657,2]
[319481725,1710799967502,-4393.41,0.00024657,2]
[319481726,1710799967515,-2303.75,0.00024657,2]
[319481727,1710799967529,-500.0,0.00024657,2]
[319481728,1710799967544,-1144.14,0.00024657,2]
[319481729,1710799967558,-1401.22,0.00024657,2]
[319481730,1710799967572,-1229.49,0.00024657,2]
[319481731,1710799967587,-511.29,0.00024657,2]
[319481732,1710799967602,-500.0,0.00024657,2]
[319481733,1710799967615,-1432.28,0.00024657,2]
[319481734,1710799967629,-500.0,0.00024657,2]
[319481735,1710799967642,-516.82,0.00024657,2]
[319481736,1710799967655,-500.0,0.00024657,2]
[319481737,1710799967670,-1305.33,0.00024657,2]
[319481738,1710799967684,-581.47,0.00024657,2]
[319481739,1710799967706,-678.53,0.00024657,2]
[319481740,1710799967719,-1022.21,0.00024657,2]
[319481741,1710799967734,-500.0,0.00024657,2]
[319481742,1710799967749,-737.52,0.00024657,2]
[319481743,1710799967763,-500.0,0.00024657,2]
[319481744,1710799967779,-1654.91,0.00024657,2]
[319481745,1710799967793,-500.0,0.00024657,2]
[319481746,1710799967807,-745.31,0.00024657,2]
[319481747,1710799967821,-500.0,0.00024657,2]
[319481748,1710799967835,-7202.93,0.00024657,2]
[319481749,1710799967849,-20689.66,0.00024657,2]
[319481750,1710799967863,-2992.02,0.00024657,2]
[319481751,1710799967877,-500.0,0.00024657,2]
[319481752,1710799967890,-638.22,0.00024657,2]
[319481753,1710799967903,-1157.8,0.00024657,2]
[319481754,1710799967916,-1110.24,0.00024657,2]
[319481755,1710799967929,-1088.66,0.00024657,2]
[319481756,1710799967946,-1090.38,0.00024657,2]
[319481757,1710799967959,-1367.92,0.00024657,2]
[319481758,1710799967972,-500.0,0.00024657,2]
[319481759,1710799967985,-8212.3,0.00024657,2]
[319481760,1710799967998,-500.0,0.00024657,2]
[319481761,1710799968011,-1716.46,0.00024657,2]
[319481762,1710799968024,-399.77501834,0.00024657,2]
[319481763,1710799968037,-1412.21,0.00024657,2]
[319481764,1710799968051,-500.0,0.00024657,2]
[319481765,1710799968064,-605.07,0.00024657,2]
[319481766,1710799968076,-622.92,0.00024657,2]
[319481767,1710799968089,-738.47,0.00024657,2]
[319481768,1710799968102,-6843.13,0.00024657,2]
[319481769,1710799968114,-642.05,0.00024657,2]
[319481770,1710799968126,-2375.9,0.00024657,2]
[319481771,1710799968139,-720.26,0.00024657,2]
[319481772,1710799968151,-1814.94,0.00024657,2]
[319481773,1710799968163,-387.12766678,0.00024657,2]
[319481774,1710799968176,-500.0,0.00024657,2]
[319481775,1710799968192,-7701.15,0.00024657,2]
[319481776,1710799968205,-2621.03,0.00024657,2]
[319481777,1710799968218,-70618.05,0.00024657,2]
[319481778,1710799968230,-1283.55,0.00024657,2]
[319481779,1710799968242,-867.51,0.00024657,2]
[319481780,1710799968255,-933.88,0.00024657,2]
[319481781,1710799968267,-651.4,0.00024657,2]
[319481782,1710799968279,-1968.24,0.00024657,2]
[319481783,1710799968291,-500.0,0.00024657,2]
[319481784,1710799968304,-500.0,0.00024657,2]
[319481785,1710799968317,-500.0,0.00024657,2]
[319481786,1710799968329,-500.0,0.00024657,2]
[319481787,1710799968341,-500.0,0.00024657,2]
[319481788,1710799968354,-500.0,0.00024657,2]
[319481789,1710799968366,-500.0,0.00024657,2]
[319481790,1710799968379,-500.0,0.00024657,2]
[319481791,1710799968391,-500.0,0.00024657,2]
[319481792,1710799968403,-500.0,0.00024657,2]
[319481793,1710799968415,-500.0,0.00024657,2]
[319481794,1710799968427,-1507.28,0.00024657,2]
[319481795,1710799968441,-15625.12,0.00024657,2]
[319481796,1710799968454,-2930.24,0.00024657,2]
[319481797,1710799968466,-500.0,0.00024657,2]
[319481798,1710799968479,-386.07,0.00024657,2]
[319481799,1710799968491,-500.0,0.00024657,2]
[319481800,1710799968504,-908.19,0.00024657,2]
[319481801,1710799968517,-836.99,0.00024657,2]
[319481802,1710799968528,-1649.1,0.00024657,2]
[319481803,1710799968540,-500.0,0.00024657,2]